[Event "*** SCC Grand Prix: Titled Tuesday Blitz"]
[Site "Chess.com"]
[Date "2020.10.13"]
[Round "2"]
[White "diamonds13"]
[Black "Alexandercs432"]
[Result "1-0"]
[WhiteElo "2413"]
[BlackElo "2175"]
[TimeControl "180+1"]
[EndTime "10:15:52 PDT"]
[Termination "diamonds13 won on time"]

1. d4 {[%clk 0:03:00.9]} 1... d5 {[%clk 0:02:56.6]} 2. c4 {[%clk 0:02:59.4]}
2... dxc4 {[%clk 0:02:56.9]} 3. e3 {[%clk 0:02:56.2]} 3... Nf6 {[%clk
0:02:56.5]} 4. Nf3 {[%clk 0:02:56.7]} 4... e6 {[%clk 0:02:57.4]} 5. Bxc4 {[%clk
0:02:56.9]} 5... a6 {[%clk 0:02:57.8]} 6. O-O {[%clk 0:02:56.5]} 6... c5 {[%clk
0:02:56.6]} 7. a4 {[%clk 0:02:56.4]} 7... Nc6 {[%clk 0:02:56.3]} 8. Nc3 {[%clk
0:02:55.1]} 8... Be7 {[%clk 0:02:54.6]} 9. Qe2 {[%clk 0:02:52.9]} 9... O-O
{[%clk 0:02:54.2]} 10. Rd1 {[%clk 0:02:51.8]} 10... Qc7 {[%clk 0:02:54.3]} 11.
d5 {[%clk 0:02:49.7]} 11... exd5 {[%clk 0:02:55.2]} 12. Nxd5 {[%clk 0:02:49.3]}
12... Nxd5 {[%clk 0:02:54.8]} 13. Bxd5 {[%clk 0:02:49.5]} 13... Nb4 {[%clk
0:02:54.6]} 14. Bc4 {[%clk 0:02:48.4]} 14... Bg4 {[%clk 0:02:45]} 15. h3 {[%clk
0:02:47.6]} 15... Bh5 {[%clk 0:02:44.8]} 16. Bd2 {[%clk 0:02:46.3]} 16... Rac8
{[%clk 0:02:36.9]} 17. Rac1 {[%clk 0:02:45.9]} 17... Nc6 {[%clk 0:02:30.5]} 18.
Bd5 {[%clk 0:02:44.4]} 18... Rfd8 {[%clk 0:02:15.9]} 19. Bc3 {[%clk 0:02:44.3]}
19... Bd6 {[%clk 0:01:49.9]} 20. Qc4 {[%clk 0:02:42.4]} 20... Bxf3 {[%clk
0:01:21.5]} 21. Bxf3 {[%clk 0:02:40.8]} 21... Ne5 {[%clk 0:01:21.4]} 22. Bxe5
{[%clk 0:02:35.8]} 22... Bxe5 {[%clk 0:01:22.3]} 23. Rxd8+ {[%clk 0:02:33.8]}
23... Rxd8 {[%clk 0:01:22.2]} 24. Qxc5 {[%clk 0:02:33.4]} 24... Qxc5 {[%clk
0:01:12.5]} 25. Rxc5 {[%clk 0:02:33.4]} 25... Bxb2 {[%clk 0:00:54.7]} 26. Bxb7
{[%clk 0:02:33]} 26... Rd1+ {[%clk 0:00:20.7]} 27. Kh2 {[%clk 0:02:31.7]} 27...
Rc1 {[%clk 0:00:20.7]} 28. Rxc1 {[%clk 0:02:29.8]} 28... Bxc1 {[%clk 0:00:21.1]}
29. Bxa6 {[%clk 0:02:30.5]} 29... Bd2 {[%clk 0:00:20.6]} 30. Kg3 {[%clk
0:02:30.6]} 30... Kf8 {[%clk 0:00:20.3]} 31. Kf4 {[%clk 0:02:30.9]} 31... Ke7
{[%clk 0:00:19.1]} 32. Ke5 {[%clk 0:02:31.3]} 32... Kd7 {[%clk 0:00:15]} 33. Bc4
{[%clk 0:02:30.3]} 33... f6+ {[%clk 0:00:14.1]} 34. Kf5 {[%clk 0:02:28.4]} 34...
Kd6 {[%clk 0:00:09.4]} 35. Bg8 {[%clk 0:02:28.1]} 35... h6 {[%clk 0:00:04.6]}
36. Kg6 {[%clk 0:02:28.2]} 36... Be1 {[%clk 0:00:03.4]} 37. f3 {[%clk
0:02:28.4]} 37... Bd2 {[%clk 0:00:03.2]} 38. e4 {[%clk 0:02:28.2]} 38... Ke5
{[%clk 0:00:01.7]} 39. Kxg7 {[%clk 0:02:27.6]} 39... Kf4 {[%clk 0:00:02.1]} 40.
Kxf6 {[%clk 0:02:25.2]} 40... Kg3 {[%clk 0:00:02.2]} 41. e5 {[%clk 0:02:25.4]}
41... Kxg2 {[%clk 0:00:02]} 42. e6 {[%clk 0:02:25.5]} 42... Kxf3 {[%clk
0:00:01.8]} 43. e7 {[%clk 0:02:24.6]} 43... Bg5+ {[%clk 0:00:01.7]} 44. Kf7
{[%clk 0:02:24.3]} 44... Bxe7 {[%clk 0:00:01.4]} 45. Kxe7 {[%clk 0:02:24.8]}
45... Kg3 {[%clk 0:00:01.6]} 46. Be6 {[%clk 0:02:24.5]} 1-0

[Event "*** SCC Grand Prix: Titled Tuesday Blitz"]
[Site "Chess.com"]
[Date "2020.10.13"]
[Round "2"]
[White "C_K_G"]
[Black "Vamostodorecto"]
[Result "0-1"]
[WhiteElo "2023"]
[BlackElo "2374"]
[TimeControl "180+1"]
[EndTime "10:15:54 PDT"]
[Termination "Vamostodorecto won by resignation"]

1. e4 {[%clk 0:03:00.9]} 1... e5 {[%clk 0:02:59.9]} 2. Nf3 {[%clk 0:03:00.6]}
2... Nc6 {[%clk 0:03:00.4]} 3. Bc4 {[%clk 0:03:00.2]} 3... Bc5 {[%clk
0:02:58.4]} 4. c3 {[%clk 0:02:59.7]} 4... d6 {[%clk 0:02:57.1]} 5. d4 {[%clk
0:02:59.4]} 5... exd4 {[%clk 0:02:58]} 6. cxd4 {[%clk 0:02:59.3]} 6... Bb6
{[%clk 0:02:58.7]} 7. h3 {[%clk 0:02:49.4]} 7... Nf6 {[%clk 0:02:54.2]} 8. Nc3
{[%clk 0:02:47.6]} 8... O-O {[%clk 0:02:53.2]} 9. Bg5 {[%clk 0:02:45.5]} 9... h6
{[%clk 0:02:51.1]} 10. Bh4 {[%clk 0:02:45.2]} 10... g5 {[%clk 0:02:49.1]} 11.
Nxg5 {[%clk 0:02:37.1]} 11... hxg5 {[%clk 0:02:50]} 12. Bxg5 {[%clk 0:02:37]}
12... Bxd4 {[%clk 0:02:47.2]} 13. Qf3 {[%clk 0:02:03.6]} 13... Ne5 {[%clk
0:02:41.6]} 14. Qg3 {[%clk 0:01:46.9]} 14... Ng6 {[%clk 0:02:36.7]} 15. h4
{[%clk 0:01:26.6]} 15... Bxc3+ {[%clk 0:02:23.7]} 16. bxc3 {[%clk 0:01:18]}
16... Nxe4 {[%clk 0:02:22.9]} 17. Qf3 {[%clk 0:01:12.8]} 17... Nxg5 {[%clk
0:02:19.5]} 18. hxg5 {[%clk 0:01:13.7]} 18... Qxg5 {[%clk 0:02:13.9]} 19. Rh5
{[%clk 0:01:11.5]} 19... Qf4 {[%clk 0:01:48]} 20. Qd3 {[%clk 0:00:46.4]} 20...
Kg7 {[%clk 0:01:29.9]} 21. Kf1 {[%clk 0:00:24.1]} 21... Bg4 {[%clk 0:01:27.1]}
22. Rh1 {[%clk 0:00:16.8]} 22... Rh8 {[%clk 0:01:23.6]} 23. Rg1 {[%clk
0:00:11.1]} 23... Rae8 {[%clk 0:01:22.4]} 24. Re1 {[%clk 0:00:09.5]} 24... Rxe1+
{[%clk 0:01:20.4]} 25. Kxe1 {[%clk 0:00:10.4]} 25... Re8+ {[%clk 0:01:18.9]} 26.
Kf1 {[%clk 0:00:10.7]} 26... Qc1+ {[%clk 0:01:17.3]} 0-1

[Event "*** SCC Grand Prix: Titled Tuesday Blitz"]
[Site "Chess.com"]
[Date "2020.10.13"]
[Round "2"]
[White "Sesleria"]
[Black "GM_Huschenbeth"]
[Result "0-1"]
[WhiteElo "2033"]
[BlackElo "2391"]
[TimeControl "180+1"]
[EndTime "10:15:55 PDT"]
[Termination "GM_Huschenbeth won by resignation"]

1. d4 {[%clk 0:02:59.9]} 1... d5 {[%clk 0:02:59.4]} 2. c4 {[%clk 0:03:00.1]}
2... dxc4 {[%clk 0:02:59.8]} 3. Nf3 {[%clk 0:02:59.7]} 3... Nf6 {[%clk
0:02:59.5]} 4. e3 {[%clk 0:02:59.7]} 4... Bg4 {[%clk 0:02:58.9]} 5. Bxc4 {[%clk
0:02:59.1]} 5... e6 {[%clk 0:02:58.9]} 6. Qb3 {[%clk 0:02:51.4]} 6... Bxf3
{[%clk 0:02:56.6]} 7. gxf3 {[%clk 0:02:49.9]} 7... Nbd7 {[%clk 0:02:52.5]} 8.
Qxb7 {[%clk 0:02:30]} 8... c5 {[%clk 0:02:52.3]} 9. Nc3 {[%clk 0:02:18.5]} 9...
cxd4 {[%clk 0:02:47.6]} 10. exd4 {[%clk 0:02:18]} 10... Be7 {[%clk 0:02:21.3]}
11. Bf4 {[%clk 0:02:11]} 11... O-O {[%clk 0:02:19.6]} 12. O-O {[%clk 0:01:52.4]}
12... Nb6 {[%clk 0:02:18.7]} 13. Be2 {[%clk 0:01:25.3]} 13... Bd6 {[%clk
0:01:52.9]} 14. Be5 {[%clk 0:00:48.1]} 14... Bxe5 {[%clk 0:01:47.4]} 15. dxe5
{[%clk 0:00:48]} 15... Nfd5 {[%clk 0:01:48.3]} 16. Kh1 {[%clk 0:00:31.6]} 16...
Nxc3 {[%clk 0:01:37.9]} 17. bxc3 {[%clk 0:00:31]} 17... Qd2 {[%clk 0:01:38.8]}
18. Bb5 {[%clk 0:00:20.1]} 18... Nd5 {[%clk 0:01:29.8]} 19. Rad1 {[%clk
0:00:16.3]} 19... Qxc3 {[%clk 0:01:28.4]} 20. Bc6 {[%clk 0:00:15.6]} 20... Qxf3+
{[%clk 0:01:27.8]} 21. Kg1 {[%clk 0:00:15.9]} 21... Qg4+ {[%clk 0:01:26.5]} 22.
Kh1 {[%clk 0:00:15.8]} 22... Qf3+ {[%clk 0:01:27.4]} 23. Kg1 {[%clk 0:00:15.7]}
23... Rab8 {[%clk 0:01:26.4]} 24. Bxd5 {[%clk 0:00:15.3]} 24... Qg4+ {[%clk
0:01:25.8]} 25. Kh1 {[%clk 0:00:13.7]} 25... Rxb7 {[%clk 0:01:25.5]} 26. Bxb7
{[%clk 0:00:14.1]} 26... Rb8 {[%clk 0:01:22.1]} 27. Rd7 {[%clk 0:00:08.4]} 27...
h5 {[%clk 0:01:16.7]} 28. Rfd1 {[%clk 0:00:08.9]} 28... Rxb7 {[%clk 0:01:15.6]}
0-1

[Event "*** SCC Grand Prix: Titled Tuesday Blitz"]
[Site "Chess.com"]
[Date "2020.10.13"]
[Round "2"]
[White "RestartingChess"]
[Black "BocharovD"]
[Result "1/2-1/2"]
[WhiteElo "2541"]
[BlackElo "2794"]
[TimeControl "180+1"]
[EndTime "10:16:05 PDT"]
[Termination "Game drawn by repetition"]

1. e4 {[%clk 0:03:00.9]} 1... c5 {[%clk 0:02:59.3]} 2. Nf3 {[%clk 0:02:53.6]}
2... e6 {[%clk 0:02:58.8]} 3. b3 {[%clk 0:02:53.7]} 3... b6 {[%clk 0:02:57.6]}
4. Bb2 {[%clk 0:02:49.4]} 4... Bb7 {[%clk 0:02:57.4]} 5. d3 {[%clk 0:02:50.3]}
5... Nf6 {[%clk 0:02:48.7]} 6. Be2 {[%clk 0:02:50.3]} 6... Be7 {[%clk
0:02:43.3]} 7. O-O {[%clk 0:02:50.3]} 7... O-O {[%clk 0:02:42.7]} 8. h3 {[%clk
0:02:50.3]} 8... d5 {[%clk 0:02:42.6]} 9. exd5 {[%clk 0:02:50.4]} 9... Nxd5
{[%clk 0:02:42.3]} 10. Re1 {[%clk 0:02:51.3]} 10... Nc6 {[%clk 0:02:42]} 11. Nc3
{[%clk 0:02:51.5]} 11... Bf6 {[%clk 0:02:41.8]} 12. Nxd5 {[%clk 0:02:47.5]}
12... Bxb2 {[%clk 0:02:40.1]} 13. Rb1 {[%clk 0:02:48]} 13... Bd4 {[%clk
0:02:30.7]} 14. Nxd4 {[%clk 0:02:39.4]} 14... Nxd4 {[%clk 0:02:25.1]} 15. Ne3
{[%clk 0:02:32.6]} 15... Qg5 {[%clk 0:02:24]} 16. c3 {[%clk 0:02:26]} 16...
Nxe2+ {[%clk 0:02:20.9]} 17. Qxe2 {[%clk 0:02:25.4]} 17... Rad8 {[%clk
0:02:21.1]} 18. Rbd1 {[%clk 0:02:14.7]} 18... Rd7 {[%clk 0:02:21.1]} 19. Rd2
{[%clk 0:02:03.5]} 19... Rfd8 {[%clk 0:02:20.1]} 20. Red1 {[%clk 0:02:03.5]}
20... h5 {[%clk 0:02:17.1]} 21. d4 {[%clk 0:01:55]} 21... cxd4 {[%clk
0:02:00.4]} 22. Rxd4 {[%clk 0:01:55.9]} 22... Rxd4 {[%clk 0:02:00]} 23. Rxd4
{[%clk 0:01:56.8]} 23... Rxd4 {[%clk 0:01:57.3]} 24. cxd4 {[%clk 0:01:57.7]}
24... h4 {[%clk 0:01:55.3]} 25. Qc4 {[%clk 0:01:49.3]} 25... Qf4 {[%clk
0:01:50]} 26. Qa4 {[%clk 0:01:43]} 26... Qb8 {[%clk 0:01:38.2]} 27. Qd7 {[%clk
0:01:34.1]} 27... Qc8 {[%clk 0:01:32.6]} 28. Qe7 {[%clk 0:01:30.6]} 28... a5
{[%clk 0:01:00.8]} 29. Qxh4 {[%clk 0:01:28.7]} 29... Qc1+ {[%clk 0:01:01]} 30.
Kh2 {[%clk 0:01:27.9]} 30... Qd2 {[%clk 0:01:01.6]} 31. Qd8+ {[%clk 0:01:23.8]}
31... Kh7 {[%clk 0:01:01.6]} 32. Ng4 {[%clk 0:01:02.7]} 32... Qf4+ {[%clk
0:00:56.6]} 33. g3 {[%clk 0:00:52.2]} 33... Qf3 {[%clk 0:00:39.8]} 34. Qh4+
{[%clk 0:00:51.5]} 34... Kg8 {[%clk 0:00:40]} 35. Qd8+ {[%clk 0:00:52.1]} 35...
Kh7 {[%clk 0:00:40.1]} 36. Qh4+ {[%clk 0:00:52.7]} 36... Kg8 {[%clk 0:00:40.5]}
37. Qd8+ {[%clk 0:00:53.4]} 37... Kh7 {[%clk 0:00:40.8]} 1/2-1/2

[Event "*** SCC Grand Prix: Titled Tuesday Blitz"]
[Site "Chess.com"]
[Date "2020.10.13"]
[Round "2"]
[White "lacafi"]
[Black "JosefineHeinemann"]
[Result "0-1"]
[WhiteElo "2123"]
[BlackElo "2635"]
[TimeControl "180+1"]
[EndTime "10:16:07 PDT"]
[Termination "JosefineHeinemann won by checkmate"]

1. d4 {[%clk 0:03:00.9]} 1... Nf6 {[%clk 0:02:55.3]} 2. Nf3 {[%clk 0:03:00.7]}
2... g6 {[%clk 0:02:55.4]} 3. c4 {[%clk 0:03:00.4]} 3... Bg7 {[%clk 0:02:55.8]}
4. Nc3 {[%clk 0:03:01.1]} 4... d5 {[%clk 0:02:56.3]} 5. cxd5 {[%clk 0:03:00.7]}
5... Nxd5 {[%clk 0:02:57.2]} 6. e4 {[%clk 0:03:01.3]} 6... Nxc3 {[%clk
0:02:57.3]} 7. bxc3 {[%clk 0:03:02.2]} 7... c5 {[%clk 0:02:57.8]} 8. Be2 {[%clk
0:03:02.6]} 8... Nc6 {[%clk 0:02:57.7]} 9. Be3 {[%clk 0:02:59.1]} 9... Bg4
{[%clk 0:02:57.3]} 10. e5 {[%clk 0:02:56.2]} 10... O-O {[%clk 0:02:56.3]} 11.
O-O {[%clk 0:02:55.9]} 11... Rc8 {[%clk 0:02:51.2]} 12. h3 {[%clk 0:02:55.2]}
12... Bxf3 {[%clk 0:02:50]} 13. Bxf3 {[%clk 0:02:56.1]} 13... e6 {[%clk
0:02:50.3]} 14. Rb1 {[%clk 0:02:51.1]} 14... cxd4 {[%clk 0:02:47.7]} 15. cxd4
{[%clk 0:02:50.1]} 15... Qd7 {[%clk 0:02:47.6]} 16. Qa4 {[%clk 0:02:45.6]} 16...
b6 {[%clk 0:02:34.1]} 17. Qb5 {[%clk 0:02:19.2]} 17... Rfd8 {[%clk 0:02:22.2]}
18. Rfd1 {[%clk 0:02:18.4]} 18... Na5 {[%clk 0:02:16.1]} 19. Qa6 {[%clk
0:01:49.8]} 19... Rc2 {[%clk 0:02:09.2]} 20. a4 {[%clk 0:01:39]} 20... Nc4
{[%clk 0:01:49.5]} 21. Bg5 {[%clk 0:01:32.9]} 21... Rc8 {[%clk 0:01:46]} 22. Be4
{[%clk 0:01:19.6]} 22... Rc3 {[%clk 0:01:42.3]} 23. Rbc1 {[%clk 0:01:18.8]}
23... Nb2 {[%clk 0:01:35.7]} 24. Rxc3 {[%clk 0:01:08.5]} 24... Rxc3 {[%clk
0:01:36.6]} 25. Rb1 {[%clk 0:00:17.1]} 25... Qxd4 {[%clk 0:01:21.4]} 26. Rxb2
{[%clk 0:00:11.6]} 26... Qxe4 {[%clk 0:01:18.7]} 27. Qxa7 {[%clk 0:00:11.1]}
27... Bxe5 {[%clk 0:01:11.1]} 28. Be3 {[%clk 0:00:04.7]} 28... Rc1+ {[%clk
0:01:06.8]} 29. Bxc1 {[%clk 0:00:03.6]} 29... Qe1# {[%clk 0:01:07.7]} 0-1

[Event "*** SCC Grand Prix: Titled Tuesday Blitz"]
[Site "Chess.com"]
[Date "2020.10.13"]
[Round "2"]
[White "shnitez"]
[Black "Alexsur1981"]
[Result "0-1"]
[WhiteElo "2525"]
[BlackElo "2772"]
[TimeControl "180+1"]
[EndTime "10:16:09 PDT"]
[Termination "Alexsur1981 won on time"]

1. c4 {[%clk 0:03:00.9]} 1... e6 {[%clk 0:02:59.6]} 2. Nf3 {[%clk 0:02:57.9]}
2... d5 {[%clk 0:02:59.8]} 3. e3 {[%clk 0:02:57.4]} 3... Nf6 {[%clk 0:02:58.7]}
4. Nc3 {[%clk 0:02:57.5]} 4... c6 {[%clk 0:02:58.4]} 5. b3 {[%clk 0:02:54.5]}
5... Nbd7 {[%clk 0:02:58.4]} 6. Qc2 {[%clk 0:02:54.1]} 6... Bd6 {[%clk 0:02:59]}
7. Bb2 {[%clk 0:02:53.5]} 7... Qe7 {[%clk 0:02:59.6]} 8. Rg1 {[%clk 0:02:34.4]}
8... Ba3 {[%clk 0:02:55.9]} 9. Bxa3 {[%clk 0:02:32]} 9... Qxa3 {[%clk
0:02:56.1]} 10. g4 {[%clk 0:02:31.8]} 10... O-O {[%clk 0:02:52.9]} 11. g5 {[%clk
0:02:30.1]} 11... Ne8 {[%clk 0:02:52.9]} 12. h4 {[%clk 0:02:26.7]} 12... g6
{[%clk 0:02:46.9]} 13. h5 {[%clk 0:02:23.9]} 13... Ng7 {[%clk 0:02:47.1]} 14.
Be2 {[%clk 0:01:41.2]} 14... Nxh5 {[%clk 0:02:36.9]} 15. Nh2 {[%clk 0:01:39.6]}
15... Ng7 {[%clk 0:02:35.3]} 16. Ng4 {[%clk 0:01:39.8]} 16... Nf5 {[%clk
0:02:34.5]} 17. Bd3 {[%clk 0:01:21.2]} 17... dxc4 {[%clk 0:02:30.7]} 18. Bxf5
{[%clk 0:01:06.7]} 18... cxb3 {[%clk 0:02:13.2]} 19. Qd3 {[%clk 0:00:47.1]}
19... exf5 {[%clk 0:02:05.9]} 20. Nh6+ {[%clk 0:00:46.9]} 20... Kh8 {[%clk
0:02:05.9]} 21. Qd4+ {[%clk 0:00:44]} 21... f6 {[%clk 0:02:06.2]} 22. gxf6
{[%clk 0:00:32.8]} 22... Nxf6 {[%clk 0:02:01.1]} 23. e4 {[%clk 0:00:06.4]} 23...
b2 {[%clk 0:01:43.7]} 24. Rb1 {[%clk 0:00:06]} 24... fxe4 {[%clk 0:01:33]} 25.
Nxe4 {[%clk 0:00:04.3]} 25... Qe7 {[%clk 0:01:32.8]} 26. d3 {[%clk 0:00:03.1]}
26... Bf5 {[%clk 0:01:30.6]} 27. Rxb2 {[%clk 0:00:02.2]} 27... Rad8 {[%clk
0:01:28.3]} 28. Qb4 {[%clk 0:00:01.3]} 28... Rde8 {[%clk 0:01:11.4]} 0-1

[Event "*** SCC Grand Prix: Titled Tuesday Blitz"]
[Site "Chess.com"]
[Date "2020.10.13"]
[Round "2"]
[White "Philosopherrr"]
[Black "karenzadita"]
[Result "0-1"]
[WhiteElo "2480"]
[BlackElo "2315"]
[TimeControl "180+1"]
[EndTime "10:16:11 PDT"]
[Termination "karenzadita won by resignation"]

1. Nf3 {[%clk 0:02:54.9]} 1... c5 {[%clk 0:02:59.7]} 2. e4 {[%clk 0:02:51.4]}
2... g6 {[%clk 0:02:59.2]} 3. d3 {[%clk 0:02:42.4]} 3... Bg7 {[%clk 0:02:58.3]}
4. g3 {[%clk 0:02:42.6]} 4... Nc6 {[%clk 0:02:57.1]} 5. Bg2 {[%clk 0:02:42.3]}
5... Nf6 {[%clk 0:02:50.6]} 6. O-O {[%clk 0:02:42.9]} 6... d6 {[%clk 0:02:48.8]}
7. Nbd2 {[%clk 0:02:42.2]} 7... O-O {[%clk 0:02:49.1]} 8. Re1 {[%clk 0:02:40]}
8... Bg4 {[%clk 0:02:47.7]} 9. c3 {[%clk 0:02:39.4]} 9... Qd7 {[%clk 0:02:46.6]}
10. Nf1 {[%clk 0:02:36.5]} 10... Bh3 {[%clk 0:02:43.4]} 11. Bh1 {[%clk
0:02:36.5]} 11... b5 {[%clk 0:02:41.4]} 12. Ne3 {[%clk 0:02:36.4]} 12... a5
{[%clk 0:02:38.2]} 13. Ng5 {[%clk 0:02:35.8]} 13... Rfc8 {[%clk 0:02:26.9]} 14.
Nxh3 {[%clk 0:02:33.6]} 14... Qxh3 {[%clk 0:02:27.8]} 15. Bg2 {[%clk 0:02:34]}
15... Qd7 {[%clk 0:02:27.4]} 16. d4 {[%clk 0:02:30.3]} 16... cxd4 {[%clk
0:02:24.3]} 17. cxd4 {[%clk 0:02:27.9]} 17... Rab8 {[%clk 0:02:24.4]} 18. a3
{[%clk 0:02:22.9]} 18... b4 {[%clk 0:02:15.4]} 19. a4 {[%clk 0:02:20.2]} 19...
b3 {[%clk 0:02:12.4]} 20. Ra3 {[%clk 0:02:12.6]} 20... Qa7 {[%clk 0:02:04.3]}
21. e5 {[%clk 0:02:08.7]} 21... dxe5 {[%clk 0:01:55.1]} 22. dxe5 {[%clk
0:02:01.1]} 22... Nxe5 {[%clk 0:01:50.6]} 23. Rxb3 {[%clk 0:02:01.9]} 23... Rd8
{[%clk 0:01:31.2]} 24. Rxb8 {[%clk 0:02:00.2]} 24... Qxb8 {[%clk 0:01:32.1]} 25.
Qc2 {[%clk 0:01:59.8]} 25... Nd3 {[%clk 0:01:30]} 26. Rd1 {[%clk 0:01:59.4]}
26... Nb4 {[%clk 0:01:22.6]} 27. Rxd8+ {[%clk 0:01:52.6]} 27... Qxd8 {[%clk
0:01:23.5]} 28. Qc4 {[%clk 0:01:49.4]} 28... h5 {[%clk 0:01:19.5]} 29. h3 {[%clk
0:01:48.8]} 29... Nd7 {[%clk 0:01:14.8]} 30. Nd5 {[%clk 0:01:42.7]} 30... Ne5
{[%clk 0:01:11.7]} 31. Qb5 {[%clk 0:01:37.6]} 31... Nxd5 {[%clk 0:01:07.1]} 32.
Qxd5 {[%clk 0:01:32.6]} 32... Qxd5 {[%clk 0:00:55.5]} 33. Bxd5 {[%clk
0:01:32.1]} 33... e6 {[%clk 0:00:50]} 34. Be4 {[%clk 0:01:21]} 34... f5 {[%clk
0:00:45.4]} 35. Bc2 {[%clk 0:01:19.8]} 35... Kf7 {[%clk 0:00:40.4]} 36. Bd2
{[%clk 0:01:16.7]} 36... Nf3+ {[%clk 0:00:40]} 0-1

[Event "*** SCC Grand Prix: Titled Tuesday Blitz"]
[Site "Chess.com"]
[Date "2020.10.13"]
[Round "2"]
[White "kinga2008"]
[Black "Snegokhod"]
[Result "0-1"]
[WhiteElo "2174"]
[BlackElo "2411"]
[TimeControl "180+1"]
[EndTime "10:16:11 PDT"]
[Termination "Snegokhod won by resignation"]

1. e4 {[%clk 0:03:00.9]} 1... c5 {[%clk 0:02:59.5]} 2. Nf3 {[%clk 0:02:52.8]}
2... d6 {[%clk 0:02:59]} 3. c3 {[%clk 0:02:51.4]} 3... Nf6 {[%clk 0:02:58.3]} 4.
Bd3 {[%clk 0:02:49.9]} 4... e5 {[%clk 0:02:56.8]} 5. Bc2 {[%clk 0:02:48.4]} 5...
Be7 {[%clk 0:02:57.4]} 6. O-O {[%clk 0:02:47]} 6... O-O {[%clk 0:02:57.1]} 7. d4
{[%clk 0:02:44.3]} 7... Nbd7 {[%clk 0:02:56.6]} 8. Bg5 {[%clk 0:02:40.6]} 8...
h6 {[%clk 0:02:54.9]} 9. Bh4 {[%clk 0:02:37.7]} 9... Nh5 {[%clk 0:02:52.1]} 10.
Bxe7 {[%clk 0:02:35.7]} 10... Qxe7 {[%clk 0:02:51.9]} 11. Na3 {[%clk 0:02:35.8]}
11... Nf4 {[%clk 0:02:49.7]} 12. Nc4 {[%clk 0:02:34.5]} 12... Nb6 {[%clk
0:02:46.3]} 13. Ne3 {[%clk 0:02:30.4]} 13... Be6 {[%clk 0:02:38.1]} 14. Bb3
{[%clk 0:02:18.3]} 14... c4 {[%clk 0:02:29.2]} 15. Bc2 {[%clk 0:02:15.3]} 15...
f6 {[%clk 0:02:26.9]} 16. dxe5 {[%clk 0:02:10.4]} 16... fxe5 {[%clk 0:02:23.2]}
17. Nf5 {[%clk 0:01:59.1]} 17... Bxf5 {[%clk 0:02:23]} 18. exf5 {[%clk
0:01:58.3]} 18... d5 {[%clk 0:02:22.4]} 19. Re1 {[%clk 0:01:56.5]} 19... e4
{[%clk 0:02:22.4]} 20. Nd4 {[%clk 0:01:56]} 20... Qg5 {[%clk 0:02:17.6]} 21. g3
{[%clk 0:01:55.3]} 21... Nd3 {[%clk 0:01:54.6]} 22. Bxd3 {[%clk 0:01:30.4]}
22... cxd3 {[%clk 0:01:53.5]} 23. b3 {[%clk 0:01:26.3]} 23... Rxf5 {[%clk
0:01:49]} 24. Nxf5 {[%clk 0:01:19.6]} 24... Qxf5 {[%clk 0:01:49.3]} 25. Qd2
{[%clk 0:01:20]} 25... Rf8 {[%clk 0:01:42.2]} 26. Re3 {[%clk 0:01:19]} 26... Nd7
{[%clk 0:01:40.6]} 27. f3 {[%clk 0:01:15.3]} 27... Ne5 {[%clk 0:01:37.8]} 28.
fxe4 {[%clk 0:01:14.1]} 28... dxe4 {[%clk 0:01:28.9]} 29. Rae1 {[%clk
0:01:03.3]} 29... Nf3+ {[%clk 0:01:28.4]} 30. Rxf3 {[%clk 0:01:01.2]} 30... Qxf3
{[%clk 0:01:24.3]} 31. c4 {[%clk 0:00:59.9]} 31... h5 {[%clk 0:01:17.4]} 32. c5
{[%clk 0:00:50.5]} 32... h4 {[%clk 0:01:16.1]} 33. gxh4 {[%clk 0:00:40.9]} 33...
Rf4 {[%clk 0:01:14.7]} 34. h3 {[%clk 0:00:33.2]} 34... Qg3+ {[%clk 0:01:11.5]}
35. Kh1 {[%clk 0:00:30.1]} 35... Rf2 {[%clk 0:01:07.3]} 0-1

[Event "*** SCC Grand Prix: Titled Tuesday Blitz"]
[Site "Chess.com"]
[Date "2020.10.13"]
[Round "2"]
[White "Oglob71"]
[Black "Rozum_Ivan"]
[Result "0-1"]
[WhiteElo "2506"]
[BlackElo "2737"]
[TimeControl "180+1"]
[EndTime "10:16:15 PDT"]
[Termination "Rozum_Ivan won by resignation"]

1. d4 {[%clk 0:03:00.9]} 1... d5 {[%clk 0:02:58.8]} 2. Nf3 {[%clk 0:02:59.9]}
2... c6 {[%clk 0:02:59.7]} 3. c4 {[%clk 0:02:59.4]} 3... Nf6 {[%clk 0:02:56.3]}
4. e3 {[%clk 0:02:59.2]} 4... g6 {[%clk 0:02:55.6]} 5. Nc3 {[%clk 0:02:57.9]}
5... Bg7 {[%clk 0:02:56]} 6. b4 {[%clk 0:02:58.3]} 6... O-O {[%clk 0:02:55.7]}
7. Bb2 {[%clk 0:02:58.6]} 7... Bg4 {[%clk 0:02:55.2]} 8. h3 {[%clk 0:02:58.1]}
8... Bxf3 {[%clk 0:02:55.1]} 9. Qxf3 {[%clk 0:02:58.8]} 9... e6 {[%clk
0:02:38.8]} 10. Qd1 {[%clk 0:02:58]} 10... Nbd7 {[%clk 0:02:38.9]} 11. Qb3
{[%clk 0:02:57.3]} 11... a6 {[%clk 0:02:37.5]} 12. a4 {[%clk 0:02:57]} 12...
dxc4 {[%clk 0:02:35.6]} 13. Bxc4 {[%clk 0:02:56.8]} 13... Nd5 {[%clk 0:02:33.6]}
14. O-O {[%clk 0:02:55.5]} 14... Qb6 {[%clk 0:02:18.5]} 15. b5 {[%clk
0:02:53.4]} 15... axb5 {[%clk 0:02:11.2]} 16. axb5 {[%clk 0:02:53.4]} 16... Nxc3
{[%clk 0:02:11.6]} 17. Bxc3 {[%clk 0:02:52.8]} 17... c5 {[%clk 0:02:10.6]} 18.
d5 {[%clk 0:02:44.3]} 18... Bxc3 {[%clk 0:02:08.6]} 19. Qxc3 {[%clk 0:02:44.3]}
19... e5 {[%clk 0:02:09.2]} 20. Qd3 {[%clk 0:02:36.7]} 20... Qd6 {[%clk
0:02:04.8]} 21. e4 {[%clk 0:02:35.4]} 21... Nb6 {[%clk 0:01:58.7]} 22. Qc3
{[%clk 0:02:35.6]} 22... Rxa1 {[%clk 0:01:55.5]} 23. Rxa1 {[%clk 0:02:34.5]}
23... Ra8 {[%clk 0:01:56.4]} 24. Rxa8+ {[%clk 0:02:34]} 24... Nxa8 {[%clk
0:01:57.3]} 25. Qa5 {[%clk 0:02:34.2]} 25... Nb6 {[%clk 0:01:57]} 26. Be2 {[%clk
0:02:32.6]} 26... c4 {[%clk 0:01:54.5]} 27. Qc3 {[%clk 0:02:28.2]} 27... Qc7
{[%clk 0:01:48.8]} 28. h4 {[%clk 0:02:25.3]} 28... f6 {[%clk 0:01:48.5]} 29. h5
{[%clk 0:02:25]} 29... Qc5 {[%clk 0:01:45.8]} 30. Bg4 {[%clk 0:02:22.5]} 30...
Kf7 {[%clk 0:01:45.5]} 31. Be6+ {[%clk 0:02:22.4]} 31... Ke7 {[%clk 0:01:45.2]}
32. hxg6 {[%clk 0:02:20.3]} 32... hxg6 {[%clk 0:01:46.1]} 33. Qh3 {[%clk
0:02:20.3]} 33... Qc7 {[%clk 0:01:31.9]} 34. Bg8 {[%clk 0:02:07.4]} 34... Qd7
{[%clk 0:01:31.6]} 35. Qh7+ {[%clk 0:02:05.5]} 35... Kf8 {[%clk 0:01:17.3]} 36.
Qxg6 {[%clk 0:02:01]} 36... Qg7 {[%clk 0:01:16.9]} 37. Qf5 {[%clk 0:01:32.2]}
37... c3 {[%clk 0:01:09.6]} 38. Qe6 {[%clk 0:01:30.1]} 38... c2 {[%clk
0:01:05.9]} 39. Qd6+ {[%clk 0:01:02.9]} 39... Qe7 {[%clk 0:01:05.8]} 40. Qxb6
{[%clk 0:00:55.8]} 40... c1=Q+ {[%clk 0:01:05.4]} 41. Kh2 {[%clk 0:00:56.4]}
41... Kxg8 {[%clk 0:01:01.6]} 42. g3 {[%clk 0:00:55.2]} 42... Qcc5 {[%clk
0:00:58.6]} 43. Qxb7 {[%clk 0:00:51.5]} 0-1